Cogmind - Beta 17 @@@ ROGUE MODE // 2026.07.25 @ 20:05:41 Player: Afro Result: Destroyed by PQ-E35(R) with Subdweller Laser Performance ------------- Evolutions (0) 0 Regions Visited (2) 400 Robots Destroyed (14) 70 Value Destroyed (73) 73 Prototype IDs (0) 0 Alien Tech Used (0) 0 Bonus (0) 0 TOTAL SCORE: 543 Bonus ------- None Cogmind --------- Core Integrity 0/250 Matter 300/300 Energy 100/100 System Corruption 0% Temperature Cool (6) Movement Core (50) Location -10/Subcaves Parts ------- > --- POWER (1) -------- (None) > --- PROPULSION (2) --- (None) > --- UTILITY (2) ------ Structural Scanner > --- WEAPON (2) ------- (None) > --- INVENTORY (5) ---- Improved Terrain Scanner Seismic Detector Scrap Shield Peak State ------------ > --- POWER ------------ Light Ion Engine > --- PROPULSION ------- Light Treads Light Treads > --- UTILITY ---------- Small Storage Unit Seismic Detector > --- WEAPON ----------- Mining Laser Mining Laser > --- INVENTORY -------- Light Ion Engine Light Ion Engine Medium Matter Pod Structural Scanner Improved Terrain Scanner Seismic Detector Mining Laser Mining Laser [Rating: 8] Favorites ----------- Power Light Ion Engine Engine Light Ion Engine Propulsion Light Treads Treads Light Treads Utility Seismic Detector Device Seismic Detector Storage Small Storage Unit Weapon Mining Laser Energy Gun Medium Laser Special Weapon Mining Laser Build | -11 -10 -10 ------- Run | Yrd Mat Sub Slots Evolved . | . . . Power . | . . . Propulsion . | . . . Utility . | . . . Weapon . | . . . Parts Attached 10 | 8 1 1 Power 2 | 1 . 1 Engine 2 | 1 . 1 Core . | . . . Reactor . | . . . Propulsion 2 | 2 . . Treads 2 | 2 . . Leg . | . . . Wheel . | . . . Hover . | . . . Flight . | . . . Utility 3 | 2 1 . Device 2 | 1 1 . Storage 1 | 1 . . Processor . | . . . Hackware . | . . . Protection . | . . . Artifact . | . . . Weapon 3 | 3 . . Energy Gun 1 | 1 . . Energy Cannon . | . . . Ballistic Gun . | . . . Ballistic Cannon . | . . . Launcher . | . . . Special Weapon 2 | 2 . . Impact Weapon . | . . . Slashing Weapon . | . . . Piercing Weapon . | . . . Special Melee Weapon . | . . . Unidentified Prototypes . | . . . Parts Lost 7 | . . 7 Power 2 | . . 2 Propulsion 2 | . . 2 Utility 1 | . . 1 Weapon 2 | . . 2 Highest Loss Streak 6 | . . 6 To Critical Strikes . | . . . Average Backups 5 | 5 5 4 Power 1 | 1 1 . Propulsion . | . . . Utility 2 | 1 2 2 Weapon 1 | 1 1 . Tool/Special . | . . . Unused Backups 7 | 1 1 5 Power 1 | . 1 . Propulsion . | . . . Utility 3 | . . 3 Weapon 3 | 1 . 2 Tool/Special . | . . . Average Slot Usage (%) 91 | . 100 89 Engine 13 | . 14 13 Treads 26 | . 28 26 Device 26 | . 22 28 Storage 1 | . 5 . Special Weapon 21 | . 28 19 Peak Build Rating 8 | 7 8 7 Average Rating 6 | 6 7 6 On Entrance 4 | . 7 7 Avg Prop Armor Cover (%) . | . . . Naked Turns . | . . . Heaviest Build 11 | 11 11 7 Greatest Support 40 | 40 40 40 Greatest Overweight (x) 3 | 3 . 1 Average Overweight (x) . | . . . Largest Inventory Capacity 8 | 8 8 5 Average Capacity 7 | 7 5 5 Most Carried 8 | 7 8 5 Average Carried 5 | 5 5 4 Final Capacity 8 | 8 5 5 Final Carried 7 | 7 5 4 Class Distribution -------------------- 100% | Mutant Dominant Class ---------------- Mutant | -10/Materials Mutant | -10/Subcaves Resources | -11 -10 -10 ----------- Run | Yrd Mat Sub Matter Collected 290 | 280 10 . Remotely . | . . . Salvage Created 188 | 188 . . Parts 24 | 24 . . Haulers Intercepted . | . . . Recyclers Shooed . | . . . Parts Field Recycled . | . . . Retrieved Matter . | . . . Parts Self-Destructed 4 | . . 4 Prevented . | . . . Parts Restored . | . . . Kills | -11 -10 -10 ------- Run | Yrd Mat Sub Combat Hostiles Destroyed . | . . . Classes Destroyed 3 | 3 . . Worker 4 | 4 . . Tunneler 9 | 9 . . Recycler 1 | 1 . . Best Kill Streak 3 | 3 . . Combat Bots Only . | . . . Max Kills in Single Turn 1 | 1 . . Gunslinging . | . . . Exploded . | . . . Melee . | . . . Uniques/NPCs Destroyed . | . . . Combat | -11 -10 -10 -------- Run | Yrd Mat Sub Hostile Shots Fired 57 | . . 57 Missed 26 | . . 26 Hits 31 | . . 31 Projectile 31 | . . 31 Damage Taken 722 | . . 722 Core 256 | . . 256 Absorbed by Shields . | . . . Core Remaining (%) 100 | 100 . . Volleys Fired 42 | 40 1 1 Largest 2 | 2 2 2 Hottest 200 | 200 200 200 Shots Fired 78 | 74 2 2 Gun 9 | 9 . . Cannon . | . . . Launcher . | . . . Special 69 | 65 2 2 Kinetic . | . . . Thermal 78 | 74 2 2 Explosive . | . . . Electromagnetic . | . . . Robot Hit Streak 4 | 4 . . Robot Miss Streak 5 | 5 . . Penetration Max . | . . . Secondary Targets . | . . . Shots Hit Robots 22 | 22 . . Core Hits 15 | 15 . . Critical Kills . | . . . Critical Parts Destroyed . | . . . Critical Strikes . | . . . Melee Attacks . | . . . Impact . | . . . Slashing . | . . . Piercing . | . . . Sneak Attacks . | . . . Combat Hostiles . | . . . Follow-up Attacks . | . . . Damage Inflicted 437 | 437 . . Guns 101 | 101 . . Cannons . | . . . Explosions . | . . . Melee . | . . . Ramming . | . . . Kinetic . | . . . Thermal 437 | 437 . . Explosive . | . . . Electromagnetic . | . . . Impact . | . . . Slashing . | . . . Piercing . | . . . Highest Corruption . | . . . Average Corruption . | . . . Corruption Purged . | . . . Corruption Blocked . | . . . Overload Shots . | . . . Overflow Damage 18 | 18 . . Projectiles 18 | 18 . . Explosions . | . . . Melee . | . . . Knockbacks . | . . . Impact . | . . . Kinetic . | . . . Secondary . | . . . Self-Inflicted Damage . | . . . Shots . | . . . Rammed . | . . . Targets Rammed . | . . . Kicked . | . . . Crushed . | . . . Highest Temperature 150 | 150 56 . Average Temperature 43 | 44 32 . Received Heat Transfer 189 | . . 189 Siege Activations . | . . . Martial Activations . | . . . Shielding Activations . | . . . Robots Disrupted . | . . . Combat Hostiles . | . . . Robots Corrupted . | . . . Combat Hostiles . | . . . Parts Fried . | . . . Impact Corruptions . | . . . Robots Melted . | . . . Combat Hostiles . | . . . Parts Melted . | . . . Heat Transferred 996 | 996 . . Parts Sabotaged . | . . . Parts Stolen . | . . . Parts Stripped . | . . . Power Chain Reactions . | . . . Alert | -11 -10 -10 ------- Run | Yrd Mat Sub Maximum Alert Level . | . . . Low Security (%) 100 | 100 100 . Level 1 . | . . . Level 2 . | . . . Level 3 . | . . . Level 4 . | . . . Level 5 . | . . . High Security . | . . . Max Security . | . . . Peak Influence 10 | 10 1 . Initial . | . . . Average . | . . . Influence Increases 71 | 70 1 . Destroy 0b10 Robot/NC 70 | 70 . . Destroy Structure 1 | . 1 . Influence Decreases 71 | 70 1 . Time Decay 71 | 70 1 . Squads Dispatched . | . . . Investigation . | . . . Extermination . | . . . Reinforcement . | . . . Assault . | . . . Garrison . | . . . Intercept . | . . . Searches Triggered . | . . . Construction Impeded . | . . . Haulers Reinforced . | . . . Active Scanning Responses . | . . . Cargo Convoy Interrupts . | . . . Stealth | -11 -10 -10 --------- Run | Yrd Mat Sub Distress Signals . | . . . Communications Jammed . | . . . Distress Signals . | . . . Times Spotted 8 | . . 8 Peak Tracking Total 8 | . . 8 Tactical Retreats . | . . . Traps | -11 -10 -10 ------- Run | Yrd Mat Sub Traps Triggered . | . . . Indirectly . | . . . Trap Hack Attempts . | . . . Triggered . | . . . Disarmed . | . . . Reprogrammed . | . . . Reused . | . . . Traps Extracted . | . . . Installed . | . . . Triggered . | . . . Machines | -11 -10 -10 ---------- Run | Yrd Mat Sub Machines Disabled . | . . . Max in Single Turn . | . . . Machines Repaired . | . . . Machines Dismantled . | . . . Machines Sabotaged . | . . . Overloaded Fab Kills . | . . . Hacking | -11 -10 -10 --------- Run | Yrd Mat Sub Machines Accessed . | . . . Terminals . | . . . Fabricators . | . . . Repair Stations . | . . . Recycling Units . | . . . Scanalyzers . | . . . Garrison Access . | . . . Total Hacks . | . . . Successful . | . . . Failed . | . . . Catastrophic . | . . . Database Lockouts . | . . . Manual . | . . . Terminals . | . . . Fabricators . | . . . Repair Stations . | . . . Recycling Units . | . . . Scanalyzers . | . . . Garrison Access . | . . . Terminal Hacks . | . . . Fabricator Hacks . | . . . Repair Station Hacks . | . . . Recycling Unit Hacks . | . . . Scanalyzer . | . . . Garrison Access Hacks . | . . . Unauthorized Hacks . | . . . Terminals . | . . . Fabricators . | . . . Repair Stations . | . . . Recycling Units . | . . . Scanalyzers . | . . . Garrison Access . | . . . Data Cores Recovered . | . . . Used . | . . . Hacking Detections . | . . . Full Trace Events . | . . . Feedback Events . | . . . Feedback Blocked . | . . . Robot Schematics Acquired . | . . . Robots Built . | . . . Authchips . | . . . Time . | . . . Total Robot Build Rating . | . . . Part Schematics Acquired . | . . . Parts Built . | . . . Authchips . | . . . Time . | . . . Total Part Build Rating . | . . . Part Studies Acquired . | . . . Parts Repaired . | . . . Time . | . . . Parts Recycled . | . . . Recycled Matter . | . . . Retrieved Matter . | . . . Retrieved Components . | . . . Parts Scanalyzed . | . . . Part Schematics Acquired . | . . . Parts Damaged . | . . . Bothacking | -11 -10 -10 ------------ Run | Yrd Mat Sub Used RIF Installer . | . . . Robots Hacked . | . . . Non-combat . | . . . Combat . | . . . Robot Hacks Applied . | . . . Relay Couplers Released . | . . . Fabnet Peak Effective % . | . . . Robots Rewired . | . . . Allies Hacked . | . . . Hacks Repelled . | . . . Allies | -11 -10 -10 -------- Run | Yrd Mat Sub Total Allies . | . . . Largest Group . | . . . Highest-Rated Group . | . . . Highest-Rated Ally . | . . . Total Orders . | . . . Ally Attacks . | . . . Total Damage . | . . . Kills . | . . . Allies Corrupted . | . . . Allies Melted 1 | . . 1 Intel | -11 -10 -10 ------- Run | Yrd Mat Sub Active Infowar (turns) 1061 | 836 41 184 Structural 212 | . 28 184 Seismic 1056 | 836 41 179 Robot Analysis Total . | . . . Derelict Logs Recovered . | . . . Drone Launches . | . . . Drone Recoveries . | . . . Exploration | -11 -10 -10 ------------- Run | Yrd Mat Sub Turns Passed 1157 | 932 41 184 Spaces Moved 553 | 422 19 112 Core 29 | 18 . 11 Treads 524 | 404 19 101 Legs . | . . . Wheels . | . . . Hover . | . . . Flight . | . . . Fastest Speed 50 | 50 160 50 Average Speed 155 | 156 160 150 Slowest Speed 200 | 200 160 160 Overloaded Moves . | . . . Propulsion Burnouts . | . . . Robots Hopped . | . . . Potential Cave-ins 2 | 2 . . Cave-ins Triggered . | . . . Exploration Rate (%) 10 | 13 9 10 Regions Visited 2 Branch Regions 1 Pre-discovered Areas . | . . . Known Exits Taken . | . . . Unknown Exits Taken 2 | 1 1 . Scrap Searched . | . . . Spaces Dug 6 | 5 1 . Terrain Destroyed 18 | 17 1 . Melee . | . . . Projectile 18 | 17 1 . AOE . | . . . Terrain Rammed . | . . . Walls Destroyed . | . . . Machines Disabled . | . . . Actions | -11 -10 -10 --------- Run | Yrd Mat Sub Total 639 | 491 26 122 Wait 9 | 4 . 5 Move 551 | 421 18 112 Hop . | . . . Pick Up 19 | 16 2 1 Fast Attach . | . . . Attach 9 | 7 1 1 Detach . | . . . Swap 1 | 1 . . Drop 8 | 2 4 2 Fire 42 | 40 1 1 Melee . | . . . Ram . | . . . Kick . | . . . Crush . | . . . Escape Stasis . | . . . Rewire . | . . . Trap . | . . . Miscellaneous . | . . . Route ------- -11/Scrapyard -10/Materials -10/Subcaves History --------- Turn | Location | Event 10 | -11/Scrapyard | Discovered new exit (range 16) 933 | -11/Scrapyard | Entered Materials 934 | -10/Materials | Build established: Mutant 956 | -10/Materials | Discovered new exit (range 7) 974 | -10/Materials | Entered Subcaves 975 | -10/Subcaves | Approached by a straggling Scientist 1061 | -10/Subcaves | Ambushed by swarm of Subdwellers 1140 | -10/Subcaves | Lost 5 allies 1152 | -10/Subcaves | Core integrity fell below 50% 1157 | -10/Subcaves | Core integrity fell below 20% 1158 | -10/Subcaves | Destroyed by PQ-E35(R) with Subdweller Laser Last Messages --------------- 9G-FIP(R) suffers critical hit (Destroy). HV Slug penetrates Twisted Machinery. F0-5Z0(h) destroyed. Mining Laser destroyed. 97-YXU(c): "I think it's somewhere southwest of here" VL-CRT(g) suffers critical hit (Meltdown). LP-P0B(g) destroyed. Subatomizers dissect the Beamcaster. 76-MY6(g) destroyed. 97-YXU(c) destroyed. Mining Laser destroyed. MW-POI(R) suffers critical hit (Meltdown). Lgt. Treads destroyed. Lgt. Ion Engine destroyed. JU-5V1(R) affixes Scrap Shield Fragment to Scrap Shield. Lgt. Treads destroyed. Seismic Detector destroyed. Lgt. Ion Engine destroyed. Map ----- +----------------------------------------------------+ | ?### ##### ?????????????????????????? | | ?## ######### ?????????????????????????? | | ?### ######?????????????????????????????? | | ? ###% %#######???????????????????????????? | | ??### ########??????????????????????????? | | ???## % ####?????????????????????????? | | ???### #####???????????????????????? | | ???### ####???????????????????????? | | ?## ### % ###??????????????????????? | | ?###### ####?????????????????????? | | ?## ### % ## ? ## ????????????????? | | ?## # ? ## ????????????????? | | ?### ##### ????????????????? | | ?##### ###### % ????????????????? | | ###### ###### ##?????????????????? | | ##### ### ##?????????????????? | | # % % ##?????????????????? | | % ## ### ##?????????????????? | | " =[%= ##### ##?????????????????? | | !%=% "#### ####????????????????? | | # !!= "#### ######??????????????? | | ###### ## #####;####?????????????? | | ##### ######### ###?????????????? | | ####### ######### ##?????????????? | | #### ####### ##?????????????? | | ###### @ ##?????????????? | | # "#### ## ##?????????????? | | ## ## #####?### ###????????????? | | ### ###### "####### ####???????????? | | ############ ####### ###???????????? | | ?######??### ## ## "##???????????? | | ??????????## R ###???????????? | | ??????????## RR ###???????????? | | ??????????## ####????????????? | | ???????##### R ####????????????? | | ??????### * #;## ###?????????????? | | ??????## % ####RR###?????????????? | | ??????## ##?????????????? | | ??????## *### ##?????????????? | | ??????### =%#### ###?????????????? | | ??????### ### ###?????????????? | | ???????## ## #??????????????? | | ???????# ## #########??????????????? | | ??????? ### ########??????????????? | | ????????? ##### ???????????????????????? | | ????????????? #####???????????????????????? | | ??????????????????????????????????????????? | | ??????????????????????????????????????????? | | ??????????????????????????????????????????? | | ??????????????????????????????????????????? | +----------------------------------------------------+ Best States ------------- Heat Dissipation 25 Energy Generation 10 Energy Capacity 125 Matter Stores 300 Matter Capacity 300 Sight Range 16 Terrain Scan Density 10 Evasion (%) 50 Recoil Reduction 2 Item Schematics ----------------- None Robot Schematics ------------------ None Fabricated ------------ Nothing Repaired ---------- Nothing Studied --------- None Alien Tech Used ----------------- None Achievements -------------- None Challenges ------------ None Game ------ Seed FieldthrustBattleSaw Manual? 0 Play Time 00:15:37 Cumulative 7.4 hours Start 2026.07.25 @ 19:49:39 End 2026.07.25 @ 20:05:41 Sessions 1 Manual Loads 0 Difficulty Rogue Special Mode None Game No. 8 Rogue 8 Adventurer 0 Explorer 0 Win Type - Total 0 Types 0/0/0/0/0/0/0/0/0/0 Lore% 1 Gallery% 8 Achievement% 7 Wizard Run 0 Options --------- Layout 1 ASCII 0 Keyboard 0 Movement Arrows Keybinds 0 Fullscreen 2 Font 24/Smallcaps Map View 50x35 Zoom Use 0% Tactical HUD 0 Map Filters NONE Filters NONE Steam 1 RUN: 60cfd078-d9b8-4255-b830-f98d81355f7a